bitfinex/quotes_ETHUSD_20251125
["timestamp","ask_amount","ask_price","bid_price","bid_amount"]
[1764095301405,0.6869,2953.8,2953.5,3.38581344]
[1764095301777,0.4879,2953.6,2953.5,3.38581344]
[1764095302592,0.4879,2953.6,2953.4,3.38685364]
[1764095302593,0.5494,2953.6,2953.4,0.001]
[1764095302887,0.216,2953.8,2953.4,0.001]
[1764095302888,0.5493,2953.5,2953.4,0.001]
[1764095303279,0.5493,2953.5,2953.4,3.38692808]
[1764095303492,0.5493,2953.5,2953.4,0.001]
[1764095303800,0.4836,2953.5,2953.4,0.001]
[1764095303979,0.5493,2953.5,2953.4,0.001]
[1764095307909,0.4879,2953.5,2953.4,0.001]
[1764095308702,0.5494,2953.5,2953.4,0.001]
[1764095309888,0.5494,2953.5,2950.6,0.4725]
[1764095309889,3.928052,2952.4,2950.6,0.4725]
[1764095310083,0.0783,2951.7,2950.7,0.4725]
[1764095310298,1.1641782,2951.7,2950.3,3.38946538]
[1764095310611,2.82141788,2951.7,2950.6,0.4725]
[1764095310908,2.82141788,2951.7,2950.6,3.86157844]
[1764095311292,2.82141788,2951.7,2950.3,0.4725]
[1764095311810,10.00852988,2951.7,2950.3,3.8619118]
[1764095312012,10.48871405,2951.7,2950.3,3.8619118]
[1764095312220,9.47022336,2951.7,2950.3,7.25139761]
[1764095312922,8.27065736,2951.7,2950.3,6.77889761]
[1764095313141,5.19080536,2951.7,2950.6,0.4725]
[1764095313295,4.87477228,2951.7,2950.6,0.4725]
[1764095313702,4.87477228,2951.7,2950.3,6.77889761]
[1764095313907,4.87477228,2951.7,2950.3,7.25139761]
[1764095314529,4.87477228,2951.7,2950.7,0.4725]
[1764095316229,4.87477228,2951.7,2950.3,6.77889761]
[1764095316230,0.72559411,2951.7,2951.5,0.001]
[1764095316431,1.01989411,2951.7,2951.5,0.001]
[1764095316601,0.2943,2951.7,2951.5,0.001]
[1764095317828,0.216,2951.7,2951.5,0.001]
[1764095318000,0.2943,2951.7,2951.5,0.001]
[1764095318396,0.216,2951.7,2951.5,0.001]
[1764095318603,0.216,2951.7,2951.6,0.9446]
[1764095318829,0.216,2951.7,2951.6,0.4721]
[1764095319129,0.216,2951.7,2951.6,0.001]
[1764095319442,0.2943,2951.7,2951.6,0.001]
[1764095322352,4.14917817,2951.7,2951.6,0.001]
[1764095322855,4.87477228,2951.7,2951.6,0.001]
[1764095323651,9.01767228,2951.7,2951.6,0.001]
[1764095323851,14.04466358,2951.7,2951.6,0.001]
[1764095324426,13.75547961,2951.7,2951.6,0.001]
[1764095324861,13.28847961,2951.7,2951.6,0.001]
[1764095325153,19.52219706,2951.6,2951.5,0.001]
[1764095325352,18.21840736,2951.6,2951.5,0.001]
[1764095325554,18.45836536,2951.6,2951.5,0.001]
[1764095325762,14.15221536,2951.6,2951.5,0.001]
[1764095325931,13.64482739,2951.6,2951.5,0.001]
[1764095326125,11.56082439,2951.6,2951.5,0.001]
[1764095326532,13.70131239,2951.6,2951.5,0.001]
[1764095326746,11.56082439,2951.6,2951.5,0.001]
[1764095328080,14.75159939,2951.6,2951.5,0.001]
[1764095328448,11.56082439,2951.6,2951.5,0.001]
[1764095329246,12.28463582,2951.6,2951.5,0.001]
[1764095333672,11.81373582,2951.6,2951.5,0.001]
[1764095334055,10.87214171,2951.6,2951.5,0.001]
[1764095334375,11.81373582,2951.6,2951.5,0.001]
[1764095334871,12.27943582,2951.6,2951.5,0.001]
[1764095335077,11.81373582,2951.6,2951.5,0.001]
[1764095336867,11.73543582,2951.6,2951.5,0.001]
[1764095337173,12.72961243,2951.6,2951.5,0.001]
[1764095338140,13.03264617,2951.6,2951.5,0.001]
[1764095338343,13.49454617,2951.6,2951.5,0.001]
[1764095338572,7.12654617,2951.6,2951.5,0.001]
[1764095339142,7.73316626,2951.6,2951.5,0.001]
[1764095340169,10.16987331,2951.6,2951.5,0.001]
[1764095340495,11.73743582,2951.6,2951.5,0.001]
[1764095340791,11.73743582,2951.6,2951.5,0.4645]
[1764095340975,8.84204956,2951.6,2951.5,0.9628]
[1764095341294,11.07944171,2951.6,2951.5,0.001]
[1764095341784,11.01184171,2951.6,2951.5,0.4645]
[1764095341943,11.92544621,2951.6,2951.5,0.4645]
[1764095342358,11.92544621,2951.6,2951.5,0.001]
[1764095342689,11.08354171,2951.6,2951.5,0.001]
[1764095343394,11.99697019,2951.6,2951.5,0.001]
[1764095343890,11.08354171,2951.6,2951.5,0.001]
[1764095344071,11.01184171,2951.6,2951.5,0.4645]
[1764095344890,11.01184171,2951.6,2951.5,0.9628]
[1764095344891,7.62384876,2951.6,2951.5,0.9628]
[1764095345185,11.01184171,2951.6,2951.5,0.001]
[1764095345489,11.80503582,2951.6,2951.5,0.001]
[1764095350258,12.7189277,2951.6,2951.5,0.001]
[1764095351794,12.7209277,2951.6,2951.5,0.001]
[1764095352164,12.6533277,2951.6,2951.5,0.4645]
[1764095353504,12.58591578,2951.6,2951.5,0.4645]
[1764095354082,7.34243684,2951.6,2951.5,0.9628]
[1764095354389,7.55843684,2951.6,2951.5,0.9628]
[1764095356662,0.97243684,2951.6,2951.5,0.9628]
[1764095356872,1.18843684,2951.6,2951.5,0.9628]
[1764095357090,0.46462541,2951.6,2951.5,0.9628]
[1764095357299,1.18843684,2951.6,2951.5,0.9628]
[1764095357803,1.18843684,2951.6,2951.5,4.35090774]
[1764095358302,0.46462541,2951.6,2951.5,4.35090774]
[1764095358502,0.46462541,2951.6,2951.5,0.9628]
[1764095358692,1.18843684,2951.6,2951.5,0.9628]
[1764095358891,0.46462541,2951.6,2951.5,0.9628]
[1764095359390,1.18843684,2951.6,2951.5,0.4645]
[1764095359605,0.46462541,2951.6,2951.5,0.4645]
[1764095359810,3.85261836,2951.6,2951.5,0.4645]
[1764095360270,3.85261836,2951.6,2951.5,0.001]
[1764095360903,0.46462541,2951.6,2951.5,0.4622]
[1764095361077,3.85261836,2951.6,2951.5,0.4622]
[1764095361401,0.46462541,2951.6,2951.5,0.4622]
[1764095361589,3.85261836,2951.6,2951.5,0.4622]
[1764095361904,0.46462541,2951.6,2951.5,0.9228]
[1764095363316,3.85261836,2951.6,2951.5,0.4622]
[1764095364191,0.46462541,2951.6,2951.5,0.4622]
[1764095364397,0.46462541,2951.6,2951.5,0.9228]
[1764095365378,3.85261836,2951.6,2951.5,0.9228]
[1764095365578,3.85261836,2951.6,2951.5,0.4622]
[1764095365802,0.46462541,2951.6,2951.5,0.4622]
[1764095366004,0.46462541,2951.6,2951.5,0.9228]
[1764095366205,0.46462541,2951.6,2951.5,0.4622]
[1764095367788,25.23781975,2951.6,2951.5,0.001]
[1764095367993,15.03570775,2951.6,2951.5,0.001]
[1764095368280,1.9222168,2951.6,2951.5,0.4622]
[1764095368537,5.31020975,2951.6,2951.5,0.4622]
[1764095370904,5.31020975,2951.6,2951.5,0.001]
[1764095372704,5.38560975,2951.6,2951.5,0.001]
[1764095374398,5.85540975,2951.6,2951.5,0.001]
[1764095374696,5.31020975,2951.6,2951.5,0.4622]
[1764095375022,0.46462541,2951.6,2951.5,0.9228]
[1764095376700,3.85261836,2951.6,2951.5,0.9228]
[1764095377103,3.92801836,2951.6,2951.5,0.001]
[1764095378325,0.46462541,2951.6,2951.5,0.001]
[1764095378525,0.24862541,2951.6,2951.5,0.9228]
[1764095378696,0.46462541,2951.6,2951.5,0.9228]
[1764095378901,0.24862541,2951.6,2951.5,0.9228]
[1764095379202,0.46462541,2951.6,2951.5,0.9228]
[1764095380627,0.24862541,2951.6,2951.5,0.9228]
[1764095380826,0.218,2951.6,2951.5,0.9228]
[1764095381128,0.218,2951.6,2951.5,4.31090774]
[1764095383336,0.002,2951.6,2951.5,4.31090774]
[1764095383509,0.218,2951.6,2951.5,4.31090774]
[1764095391108,0.002,2951.9,2951.5,8.34758373]
[1764095391310,0.002,2952.2,2951.9,1.13109811]
[1764095391534,0.002,2952.4,2952.3,0.405504]
[1764095391706,0.002,2952.4,2952.3,4.24889364]
[1764095391913,0.002,2952.4,2952.3,4.71969364]
[1764095395352,0.002,2952.4,2952.3,5.44528775]
[1764095395559,0.002,2952.4,2952.3,5.54128775]
[1764095400447,0.002,2953.0,2952.5,0.405504]
[1764095400763,0.002,2953.8,2952.3,14.72563045]
[1764095400764,0.002,2953.8,2953.0,1.13109811]
[1764095400944,0.002,2953.8,2953.7,0.6579]
[1764095401138,0.002,2953.8,2953.7,1.376504]
[1764095402258,0.002,2953.8,2953.7,4.76208818]
[1764095405383,0.002,2953.8,2953.7,3.86008418]
[1764095407054,0.002,2953.8,2953.7,3.38558418]
[1764095407055,0.0573,2953.8,2953.7,3.38558418]
[1764095407259,0.002,2953.8,2953.7,3.86008418]
[1764095407471,0.002,2953.8,2953.7,4.35658418]
[1764095408380,0.002,2953.8,2953.6,3.38569105]
[1764095408381,0.002,2953.8,2953.6,3.3856988]
[1764095408572,0.002,2953.8,2953.4,6.77182603]
[1764095408771,0.002,2953.8,2953.5,0.4965]
[1764095409151,0.002,2953.8,2953.7,0.4745]
[1764095410163,0.002,2953.8,2953.7,1.00485584]
[1764095410368,0.002,2953.8,2953.7,0.971]
[1764095410566,0.002,2953.8,2953.7,4.35658418]
[1764095411182,0.002,2953.8,2953.7,3.86008418]
[1764095411382,0.4536,2953.8,2953.5,3.3857693]
[1764095411578,0.002,2953.8,2953.3,3.38600176]
[1764095411779,0.4961,2953.8,2953.3,3.38600176]
[1764095412092,0.4961,2953.8,2953.3,6.77204449]
[1764095412802,0.4961,2953.8,2953.2,6.77231476]
[1764095412964,0.002,2953.8,2953.2,10.65497214]
[1764095413163,0.002,2953.8,2953.3,0.902004]
[1764095413361,0.002,2953.8,2953.3,0.405504]
[1764095413624,0.002,2953.8,2953.4,0.4965]
[1764095413867,0.002,2953.8,2953.7,0.4745]
[1764095414364,0.002,2953.8,2953.7,0.971]
[1764095415172,0.0573,2953.8,2953.3,0.902004]
[1764095415373,0.0573,2953.8,2953.4,6.77176674]
[1764095416166,0.002,2953.8,2953.7,0.4745]
[1764095416789,0.002,2953.8,2953.7,0.971]
[1764095417091,0.002,2953.8,2953.7,0.4745]
[1764095417405,0.002,2953.8,2953.7,3.38558418]
[1764095417589,0.002,2953.8,2953.7,3.86008418]
[1764095417902,0.002,2953.8,2953.7,4.35658418]
[1764095419615,0.002,2953.8,2953.4,3.38592808]
[1764095419616,0.2468,2953.8,2953.4,3.38592808]
[1764095419773,0.6812,2953.8,2953.4,6.77185616]
[1764095419973,0.1915,2953.8,2953.4,6.77185616]
[1764095420173,0.1915,2953.8,2953.4,3.38592808]
[1764095420368,0.462,2953.5,2953.0,0.1]
[1764095420594,0.53213056,2953.4,2953.0,0.1]
[1764095420806,0.72836788,2953.6,2953.0,4.8123696]
[1764095420807,0.31613056,2953.3,2953.0,4.8123696]
[1764095421028,0.002,2953.8,2953.5,0.463]
[1764095421303,0.002,2953.8,2953.1,1.22239411]
[1764095421304,0.462,2953.6,2953.1,3.38623506]
[1764095421481,0.3052,2953.8,2953.0,0.1]
[1764095421681,0.79403399,2953.7,2953.0,6.87276146]
[1764095421999,0.31653399,2953.6,2953.0,3.48637358]
[1764095422297,0.31658784,2953.5,2953.0,3.48637358]
[1764095422502,0.4775,2953.6,2953.0,6.8727603]
[1764095422698,0.31658785,2953.5,2953.0,6.8727603]
[1764095422903,0.216,2953.5,2953.0,7.3695603]
[1764095423301,0.216,2953.5,2953.1,0.4968]
[1764095424704,0.216,2953.5,2953.0,6.8737603]
[1764095425009,0.216,2953.5,2953.1,0.4968]
[1764095425189,0.4795,2953.8,2953.1,0.4968]
[1764095425190,0.002,2953.8,2953.4,0.463]
[1764095425395,0.31675594,2953.7,2953.4,0.463]
[1764095425598,0.216,2953.7,2953.4,0.9598]
[1764095425786,0.216,2953.7,2953.6,0.463]
[1764095427380,0.2877,2953.7,2953.6,3.3856988]
[1764095427691,0.216,2953.7,2953.6,3.3856988]
[1764095428712,0.216,2953.7,2953.6,3.8486988]
[1764095429710,0.2918,2953.7,2953.5,3.38578751]
[1764095430080,0.216,2953.7,2953.5,3.38578751]
[1764095430280,0.0797,2953.6,2953.5,3.38578751]
[1764095431416,0.216,2953.7,2953.5,7.23460095]
[1764095431602,0.216,2953.7,2953.5,3.84878751]
[1764095431798,0.216,2953.7,2953.6,0.463]
[1764095432110,0.216,2953.7,2953.5,3.38578751]
[1764095432318,0.216,2953.7,2953.5,6.77160095]
[1764095432710,0.0717,2953.6,2953.5,3.38578751]
[1764095433039,0.5452,2953.6,2953.2,6.77224043]
[1764095433222,0.5452,2953.6,2953.2,3.38608305]
[1764095433223,0.0047,2953.5,2953.2,3.38608305]
[1764095433415,0.0711,2953.3,2953.2,3.38608305]
[1764095433807,0.5452,2953.3,2953.0,3.48737989]
[1764095434015,0.0047,2953.1,2953.0,0.101]
[1764095434215,0.0047,2953.1,2953.0,3.48738672]
[1764095435221,0.216,2953.2,2953.0,6.87377344]
[1764095435603,0.0717,2953.1,2953.0,3.48738672]
[1764095436421,0.216,2953.2,2953.0,7.33677344]
[1764095436628,0.216,2953.2,2953.1,0.463]
[1764095437008,0.678,2953.2,2953.0,3.48738672]
[1764095437333,0.4582,2953.1,2953.0,3.48738672]
[1764095438808,0.216,2953.2,2953.0,7.33677344]
[1764095439740,0.216,2953.2,2953.0,3.95038672]
[1764095439909,0.216,2953.2,2953.0,7.33677344]
[1764095441748,0.002,2954.5,2954.0,0.559]
[1764095441919,0.002,2954.8,2954.5,0.405504]
[1764095442118,0.002,2955.3,2954.8,1.13109811]
[1764095442318,0.002,2955.3,2955.2,4.91204002]
[1764095442542,0.002,2955.3,2955.2,6.2737385]
[1764095442745,0.002,2955.3,2955.2,1.78139411]
[1764095443241,0.002,2955.3,2955.2,8.69670574]
[1764095443443,0.002,2955.3,2955.2,8.37661563]
[1764095444346,0.002,2955.3,2955.2,9.10220974]
[1764095444525,0.002,2955.3,2955.2,10.18100345]
[1764095444918,0.002,2955.9,2955.5,0.405504]
[1764095445123,0.002,2956.2,2955.9,0.405504]
[1764095445460,0.002,2956.2,2956.1,5.76414362]
[1764095445753,0.4775,2957.2,2956.1,7.08253773]
[1764095445911,0.216,2957.6,2956.8,0.405504]
[1764095446445,0.216,2957.6,2956.8,0.902304]
[1764095447324,0.216,2957.6,2956.9,6.7638405]
[1764095447528,0.6935,2957.6,2956.9,6.7638405]
[1764095448055,0.216,2957.6,2957.1,4.70623962]
[1764095448437,0.216,2957.6,2957.2,0.4968]
[1764095448637,0.216,2957.6,2956.9,6.7638405]
[1764095448829,0.6935,2957.6,2956.9,6.7638405]
[1764095449029,0.216,2957.6,2956.9,6.7638405]
[1764095449230,0.4775,2957.5,2956.9,6.7638405]
[1764095450451,0.0717,2957.0,2956.6,3.38226341]
[1764095450749,0.4775,2957.5,2956.6,6.76452682]
[1764095451561,0.4775,2957.5,2956.5,7.17025962]
[1764095452053,0.2601,2956.6,2955.4,4.70623962]
[1764095452215,0.2601,2956.6,2955.2,6.76773144]
[1764095452216,0.216,2956.5,2955.2,6.76773144]
[1764095452421,0.4757,2956.4,2955.2,6.76773144]
[1764095452836,0.4757,2956.4,2955.2,10.15159716]
[1764095453320,0.4757,2956.4,2955.4,4.70623962]
[1764095453526,0.4757,2956.4,2955.5,0.471]
[1764095453721,0.4757,2956.4,2955.6,6.76681552]
[1764095454322,0.4757,2956.4,2955.6,7.23781552]
[1764095455749,0.4757,2956.4,2955.6,6.76681552]
[1764095456940,0.4777,2956.4,2955.6,6.76681552]
[1764095457970,0.4777,2956.4,2955.6,7.23781552]
[1764095458877,0.002,2956.4,2955.7,0.471]
[1764095460075,0.002,2956.4,2955.8,6.76635766]
[1764095460445,0.002,2956.4,2955.8,7.25185766]
[1764095460879,0.002,2956.4,2955.8,6.76635766]
[1764095461176,0.002,2956.4,2955.9,0.4855]
[1764095461376,0.002,2956.4,2956.3,0.4923]
[1764095461893,0.002,2956.4,2956.3,0.9778]
[1764095462181,0.002,2956.4,2956.3,4.76591063]
[1764095462590,0.002,2956.4,2956.3,4.86191063]
[1764095462782,0.002,2956.4,2956.3,5.58750474]
[1764095464081,0.002,2956.4,2956.3,5.80350474]
[1764095464393,0.002,2956.4,2956.3,5.00600474]
[1764095464572,0.4759,2956.4,2956.3,3.38260663]
[1764095464899,0.002,2956.4,2956.3,3.87490663]
[1764095465083,0.002,2956.4,2956.3,4.76591063]
[1764095465879,0.002,2956.4,2956.3,3.38260663]
[1764095466075,0.002,2956.4,2956.0,4.70623962]
[1764095466076,0.0906,2956.4,2956.0,6.76589986]
[1764095466480,0.0906,2956.4,2956.0,10.63434979]
[1764095466481,0.002,2956.4,2956.0,10.63434979]
[1764095466968,0.002,2956.4,2956.3,0.4923]
[1764095467401,0.002,2956.4,2956.3,0.9778]
[1764095467601,0.002,2956.4,2956.3,0.4923]
[1764095467775,0.002,2956.4,2956.1,0.595204]
[1764095468179,0.002,2956.4,2956.3,0.4923]
[1764095469595,0.002,2956.4,2956.3,0.9778]
[1764095470212,0.002,2956.4,2956.3,4.36040663]
[1764095471784,0.002,2956.4,2956.3,3.87490663]
[1764095472108,0.002,2956.4,2956.3,4.36040663]
[1764095472314,0.4759,2956.4,2956.3,3.38260663]
[1764095473619,0.002,2956.4,2956.3,3.38260663]
[1764095474408,0.002,2956.4,2956.1,0.001]
[1764095476231,0.002,2956.4,2956.3,0.4923]
[1764095476383,0.002,2956.4,2956.3,3.38260663]
[1764095478752,0.002,2956.4,2956.2,6.76543165]
[1764095480526,0.002,2956.4,2956.3,4.31460663]
[1764095480751,0.002,2956.4,2956.3,4.41060663]
[1764095480954,0.002,2956.4,2956.3,4.31460663]
[1764095481120,0.002,2956.4,2956.3,3.83270663]
[1764095483871,0.002,2956.4,2956.3,4.31460663]
[1764095484374,0.002,2956.4,2956.3,3.83270663]
[1764095484547,0.002,2956.4,2956.3,4.31460663]
[1764095485244,0.002,2956.4,2956.3,4.41060663]
[1764095485442,0.002,2956.4,2956.3,4.31460663]
[1764095486334,0.002,2956.4,2956.3,4.75393669]
[1764095486537,0.002,2956.4,2956.3,4.81611063]
[1764095486936,0.002,2956.4,2956.3,4.72011063]
[1764095487163,0.0821,2956.4,2956.3,3.38260663]
[1764095487665,0.002,2956.4,2956.3,3.83270663]
[1764095487966,0.0821,2956.4,2956.3,3.38260663]
[1764095489462,0.002,2956.4,2956.2,6.76543165]
[1764095490170,0.002,2956.4,2956.3,0.4501]
[1764095491638,0.002,2956.4,2956.3,3.73270663]
[1764095492174,0.185,2956.4,2956.3,3.38260663]
[1764095492757,0.002,2956.4,2956.3,3.83270663]
[1764095493686,0.185,2956.4,2956.3,3.38260663]
[1764095493882,0.002,2956.4,2956.3,0.4501]
[1764095494289,0.002,2956.4,2956.3,1.337504]
[1764095496182,0.002,2956.4,2956.3,4.72011063]
[1764095497751,0.2641,2956.4,2956.3,3.38260663]
[1764095498691,0.2641,2956.4,2956.3,3.61821595]
[1764095499659,0.2641,2956.4,2956.3,7.00082258]
[1764095501997,0.002,2956.4,2956.3,7.00082258]
[1764095502372,0.2662,2956.4,2956.3,7.00082258]
[1764095502694,0.2662,2956.4,2956.3,3.38260663]
[1764095502863,0.734,2956.4,2956.3,3.38260663]
[1764095503064,0.2662,2956.4,2956.3,3.38260663]
[1764095503258,0.734,2956.4,2956.1,3.61921595]
[1764095503465,0.0047,2956.2,2956.1,0.001]
[1764095503672,0.32192129,2956.2,2956.1,3.61921595]
[1764095503862,1.00882129,2956.2,2956.1,3.61921595]
[1764095504063,1.00882129,2956.2,2956.1,7.00205144]
[1764095504472,0.53692129,2956.2,2956.1,7.00205144]
[1764095504868,0.0047,2956.2,2956.1,7.00205144]
[1764095505069,0.217,2956.4,2956.1,7.00205144]
[1764095505070,0.217,2956.4,2956.1,10.38488693]
[1764095507176,0.002,2956.4,2956.1,10.38488693]
[1764095507991,0.002,2956.4,2956.3,0.4501]
[1764095508199,0.002,2956.4,2956.3,0.855604]
[1764095508428,0.002,2956.7,2956.4,0.405504]
[1764095508614,0.002,2957.5,2956.9,4.47381995]
[1764095508817,0.002,2957.5,2957.4,3.61821595]
[1764095509141,0.31886942,2957.5,2957.4,3.61821595]
[1764095509295,0.002,2957.5,2957.4,3.61821595]
[1764095509496,0.002,2957.5,2957.4,4.47381995]
[1764095509800,0.002,2957.5,2957.4,4.95571995]
[1764095510425,0.002,2957.5,2957.4,8.33706843]
[1764095510632,0.002,2957.5,2957.4,4.71885248]
[1764095512632,0.002,2957.5,2957.4,4.81485248]
[1764095512794,0.002,2957.5,2957.4,3.78685248]
[1764095513304,0.002,2957.5,2957.4,4.25275248]
[1764095518398,0.002,2957.5,2957.4,3.78685248]
[1764095518593,0.258,2957.5,2957.4,3.78685248]
[1764095518796,0.002,2957.5,2957.4,4.25275248]
[1764095521501,0.002,2957.5,2957.4,4.70815248]
[1764095521727,0.002,2957.5,2957.4,3.78685248]
[1764095521926,0.495,2957.5,2957.4,3.38134848]
[1764095522126,0.495,2957.5,2957.0,0.620504]
[1764095522127,0.495,2957.5,2956.8,3.38203463]
[1764095522333,0.002,2957.5,2956.8,13.98353852]
[1764095522502,0.002,2957.5,2957.4,0.4632]
[1764095522702,0.002,2957.5,2957.4,1.324104]
[1764095524224,0.002,2957.5,2957.4,4.70545248]
[1764095524529,0.002,2957.5,2957.4,4.80145248]
[1764095527334,0.002,2957.5,2957.4,4.70545248]
[1764095527943,0.7355,2957.5,2957.4,3.38134848]
[1764095528522,0.2708,2957.5,2957.2,3.38154745]
[1764095528701,0.2356,2957.4,2957.2,6.76312461]
[1764095528903,0.4956,2957.3,2957.2,3.38154745]
[1764095529537,0.7358,2957.3,2957.2,3.38154745]
[1764095530639,0.7358,2957.3,2957.0,0.001]
[1764095530944,0.2688,2957.1,2957.0,0.001]
[1764095531711,0.7335,2957.1,2957.0,0.001]
[1764095531913,0.9485,2957.1,2957.0,0.001]
[1764095533820,4.33019152,2957.1,2957.0,0.001]
[1764095534052,0.9485,2957.1,2957.0,0.001]
[1764095535329,4.33019152,2957.1,2957.0,0.001]
[1764095535527,0.9485,2957.1,2957.0,0.001]
[1764095536053,4.33019152,2957.1,2957.0,0.001]
[1764095536361,0.9485,2957.1,2957.0,0.001]
[1764095536661,4.33019152,2957.1,2957.0,0.001]
[1764095537015,4.64604784,2957.1,2957.0,0.001]
[1764095537423,1.26435632,2957.1,2957.0,0.001]
[1764095537677,0.9485,2957.1,2957.0,0.001]
[1764095537883,0.7335,2957.1,2957.0,0.001]
[1764095538061,0.2688,2957.1,2957.0,0.001]
[1764095539673,6.8347,2957.4,2957.0,0.001]
[1764095539856,6.37,2957.4,2957.0,0.001]
[1764095540056,0.2688,2957.1,2957.0,0.001]
[1764095540441,0.7335,2957.1,2957.0,0.001]
[1764095541081,0.2688,2957.1,2957.0,0.001]
[1764095541945,0.9485,2957.1,2957.0,0.001]
[1764095542449,0.215,2957.1,2957.0,0.4887]
[1764095542653,0.002,2957.5,2957.0,0.9468]
[1764095542859,0.217,2957.5,2957.0,0.9468]
[1764095543870,0.217,2957.5,2957.1,3.38169152]
[1764095544073,0.6931,2957.5,2957.1,3.38169152]
[1764095544361,0.2595,2957.2,2957.1,3.38169152]
[1764095547062,0.7334,2957.2,2957.1,3.38169152]
[1764095547263,0.2595,2957.2,2957.1,3.38169152]
[1764095548397,0.7334,2957.2,2957.0,0.001]
[1764095548555,0.0047,2957.1,2957.0,0.001]
[1764095548756,0.4808,2957.1,2957.0,0.001]
[1764095549261,0.0047,2957.1,2957.0,0.001]
[1764095549585,0.4808,2957.1,2957.0,0.001]
[1764095552279,0.217,2957.5,2957.0,0.4887]
[1764095552482,0.217,2957.5,2957.0,0.9468]
[1764095553197,0.217,2957.5,2957.1,3.38169152]
[1764095553396,0.217,2957.5,2957.1,6.76338304]
[1764095553580,0.217,2957.5,2957.1,7.22148304]
[1764095554259,0.217,2957.5,2957.1,6.76338304]
[1764095555189,0.217,2957.5,2957.0,6.76461176]
[1764095555492,0.6931,2957.5,2957.0,6.76461176]
[1764095555792,0.6931,2957.5,2957.0,0.001]
[1764095556088,0.4761,2957.4,2957.0,0.001]
[1764095556288,0.217,2957.5,2957.0,0.001]
[1764095556492,0.217,2957.5,2957.0,0.4591]
[1764095557285,0.217,2957.5,2957.1,6.76338304]
[1764095557286,0.002,2957.5,2957.1,6.76338304]
[1764095557486,0.215,2957.4,2957.1,6.76338304]
[1764095557683,0.215,2957.4,2957.2,0.03381577]
[1764095557884,0.002,2957.5,2957.2,0.03381577]
[1764095557885,0.002,2957.5,2957.3,0.4877]
[1764095558091,0.002,2957.5,2957.4,0.4877]
[1764095558503,0.002,2957.5,2957.4,0.9458]
[1764095559808,0.002,2957.5,2957.4,4.32714848]
[1764095560203,0.002,2957.5,2957.4,3.86904848]
[1764095562210,0.002,2957.5,2957.4,4.32714848]
[1764095563805,0.002,2957.5,2957.4,3.86904848]
[1764095564108,0.2653,2957.5,2957.2,7.16865832]
[1764095564479,0.002,2957.5,2957.4,0.4877]
[1764095566203,0.002,2957.5,2957.4,3.86904848]
[1764095566506,0.002,2957.5,2957.4,4.42314848]
[1764095566817,0.002,2957.5,2957.4,4.82865248]
[1764095567411,0.002,2957.5,2957.4,5.55424659]
[1764095568703,0.002,2957.5,2957.4,5.45824659]
[1764095569822,0.002,2957.5,2957.4,5.55424659]
[1764095570817,0.002,2957.5,2957.4,5.09614659]
[1764095571019,0.002,2957.5,2957.4,5.58134659]
[1764095573595,0.002,2958.1,2957.8,0.405504]
[1764095573794,0.002,2958.1,2958.0,5.57560546]
[1764095574494,0.002,2958.1,2958.0,6.06080546]
[1764095574711,0.002,2958.1,2958.0,9.44146806]
[1764095575435,0.7349,2958.1,2957.1,3.38169152]
[1764095575602,0.4833,2958.1,2957.3,0.5812]
[1764095575928,0.4833,2958.1,2957.4,0.405504]
[1764095576133,0.002,2958.1,2958.0,0.4657]
[1764095576301,0.002,2958.1,2958.0,1.356404]
[1764095576609,0.7349,2958.1,2957.8,0.405504]
[1764095576808,0.4833,2958.1,2957.8,0.405504]
[1764095577014,0.002,2958.1,2957.8,0.405504]
[1764095578808,0.002,2958.1,2957.9,6.7615538]
[1764095579245,0.2516,2958.0,2957.9,3.3807769]
[1764095580339,0.002,2958.1,2957.9,6.7615538]
[1764095580545,0.002,2958.1,2958.0,0.9564]
[1764095580712,0.002,2958.1,2958.0,3.3806626]
[1764095581150,0.002,2958.1,2958.0,9.44696806]
[1764095581516,0.002,2958.1,2958.0,9.54296806]
[1764095582648,0.002,2958.4,2958.1,1.13109811]
[1764095582874,0.002,2958.7,2958.3,15.02128502]
[1764095583081,0.002,2958.7,2958.6,5.32781885]
[1764095583374,0.002,2958.7,2958.6,5.79631885]
[1764095584874,0.002,2958.7,2958.6,9.17629586]
[1764095588346,0.5132,2960.0,2958.8,0.501504]
[1764095588546,0.5132,2960.0,2959.5,3.61282074]
[1764095588777,0.5132,2960.0,2958.7,1.19409411]
[1764095588778,0.5132,2960.0,2959.3,3.61282074]
[1764095588996,0.2798,2959.4,2959.3,6.99199824]
[1764095589452,0.7338,2959.4,2959.3,6.99199824]
[1764095590059,0.5132,2960.0,2959.3,10.85907574]
[1764095590259,0.0574,2960.0,2959.8,3.61282074]
[1764095590461,0.1867,2960.3,2959.8,3.61282074]
[1764095590462,0.4558,2960.2,2959.8,3.61282074]
[1764095590661,0.4558,2960.2,2960.1,3.61282074]
[1764095590987,0.607,2960.2,2960.1,3.61282074]
[1764095591286,0.1512,2960.2,2960.1,6.99108498]
[1764095591448,0.6039,2960.2,2960.1,3.37826424]
[1764095592290,0.6039,2960.2,2960.1,6.99108498]
[1764095592871,0.6039,2960.2,2960.0,3.37836684]
[1764095593186,0.4603,2960.1,2959.7,3.37872081]
[1764095593488,0.4603,2960.1,2958.8,0.1871]
[1764095593489,0.3385,2959.6,2958.8,0.1871]
[1764095593647,0.1873,2959.6,2959.4,3.61282074]
[1764095593855,0.6431,2959.6,2959.4,3.61282074]